fUSD/lending_fUSD_20260507
["ID","MTS","AMOUNT","RATE_DAILY","PERIOD"]
[421746295,1778093433000,-500.0,0.00027616,2]
[421746291,1778093433000,-188.93,0.00027397,7]
[421746292,1778093433000,-300.0,0.00027397,2]
[421746284,1778093433000,-2251.65069118,0.00027123,2]
[421746278,1778093433000,-500.0,0.00025899,2]
[421746286,1778093433000,-1680.0,0.00027296,2]
[421746287,1778093433000,-504.4114804,0.00027395,2]
[421746306,1778093433000,-417.0,0.00028878,2]
[421746303,1778093433000,-2367.435,0.00028878,2]
[421746302,1778093433000,-186.23,0.00028821,2]
[421746305,1778093433000,-925.0,0.00028878,2]
[421746300,1778093433000,-604.74918934,0.00028583,2]
[421746296,1778093433000,-10000.0,0.00027772,2]
[421746301,1778093433000,-188.92,0.00028819,2]
[421746288,1778093433000,-500.0,0.00027395,2]
[421746293,1778093433000,-7474.03,0.00027397,10]
[421746290,1778093433000,-186.23,0.00027397,7]
[421746289,1778093433000,-500.0,0.00027395,2]
[421746304,1778093433000,-1352.0,0.00028878,2]
[421746357,1778093434000,-226.0,0.00032205,30]
[421746366,1778093434000,-159.0,0.00033205,30]
[421746360,1778093434000,-596.19181761,0.00033,120]
[421746358,1778093434000,-173.8,0.0003221,5]
[421746364,1778093434000,-160.0,0.00033205,30]
[421746359,1778093434000,-506.0,0.00032606,8]
[421746367,1778093434000,-226.0,0.00033205,30]
[421746372,1778093434000,-600.0,0.000339,12]
[421746361,1778093434000,-331.212,0.00033,120]
[421746377,1778093434000,-604.74918934,0.00034242,2]
[421746368,1778093434000,-2842.13055093,0.00033526,2]
[421746369,1778093434000,-596.19181761,0.000339,120]
[421746373,1778093434000,-173.8,0.00034182,7]
[421746374,1778093434000,-160.0,0.00034205,30]
[421746375,1778093434000,-214.0,0.00034205,30]
[421746376,1778093434000,-226.0,0.00034205,30]
[421746378,1778093434000,-506.0,0.00034428,10]
[421746365,1778093434000,-214.0,0.00033205,30]
[421746379,1778093434000,-1781.392,0.00034776,40]
[421746370,1778093434000,-331.212,0.000339,120]
[421746363,1778093434000,-160.0,0.00033205,30]
[421746348,1778093434000,-596.19181761,0.00032,120]
[421746362,1778093434000,-645.43720787,0.00033,120]
[421746389,1778093434000,-214.0,0.00035205,30]
[421746335,1778093434000,-214.0,0.00031205,30]
[421746337,1778093434000,-155.0,0.00031205,30]
[421746336,1778093434000,-155.0,0.00031205,30]
[421746338,1778093434000,-161.4113931,0.00031205,30]
[421746340,1778093434000,-604.74918934,0.00031413,2]
[421746339,1778093434000,-226.0,0.00031205,30]
[421746341,1778093434000,-2842.13055093,0.00031536,2]
[421746342,1778093434000,-257.85786345,0.000317,2]
[421746349,1778093434000,-331.212,0.00032,120]
[421746347,1778093434000,-417.0,0.00031878,2]
[421746343,1778093434000,-257.85786342,0.000317,2]
[421746352,1778093434000,-160.0,0.00032205,30]
[421746351,1778093434000,-645.43720787,0.00032,120]
[421746350,1778093434000,-301.91643066,0.00032,120]
[421746353,1778093434000,-158.0,0.00032205,30]
[421746344,1778093434000,-257.85786342,0.000317,2]
[421746346,1778093434000,-253.826,0.00031878,2]
[421746354,1778093434000,-214.0,0.00032205,30]
[421746345,1778093434000,-328.752,0.00031878,2]
[421746355,1778093434000,-158.0,0.00032205,30]
[421746356,1778093434000,-155.0,0.00032205,30]
[421746391,1778093434000,-2842.13055093,0.00035515,2]
[421746371,1778093434000,-645.43720787,0.000339,120]
[421746382,1778093434000,-441.0,0.00034926,5]
[421746408,1778093434000,-173.8,0.00036153,30]
[421746406,1778093434000,-331.212,0.00036,120]
[421746409,1778093434000,-214.0,0.00036205,30]
[421746414,1778093434000,-153.22033716,0.00036274,2]
[421746415,1778093434000,-160.0,0.00037,120]
[421746413,1778093434000,-962.0,0.00036261,30]
[421746416,1778093434000,-604.74918934,0.00037071,2]
[421746417,1778093434000,-214.0,0.00037205,30]
[421746423,1778093434000,-1000.0,0.00037626,7]
[421746407,1778093434000,-645.43720787,0.00036,120]
[421746422,1778093434000,-1018.13720658,0.00037591,2]
[421746418,1778093434000,-226.0,0.00037205,30]
[421746419,1778093434000,-319.62062567,0.00037491,12]
[421746420,1778093434000,-2842.13055093,0.00037505,2]
[421746425,1778093434000,-2019.20459109,0.00037739,2]
[421746421,1778093434000,-54365.79985494,0.00037553,2]
[421746426,1778093434000,-540.58542602,0.00037739,2]
[421746427,1778093434000,-615.73022702,0.00037739,2]
[421746428,1778093434000,-699.59791438,0.00037739,2]
[421746387,1778093434000,-500.0,0.0003512,120]
[421746424,1778093434000,-36313.33732075,0.00037739,2]
[421746412,1778093434000,-426.0,0.00036261,30]
[421746411,1778093434000,-506.0,0.00036251,12]
[421746405,1778093434000,-596.19181761,0.00036,120]
[421746384,1778093434000,-331.212,0.00035,120]
[421746383,1778093434000,-596.19181761,0.00035,120]
[421746381,1778093434000,-280.583,0.00034878,2]
[421746390,1778093434000,-226.0,0.00035205,30]
[421746380,1778093434000,-184.806,0.00034776,40]
[421746385,1778093434000,-645.43720787,0.00035,120]
[421746386,1778093434000,-502.00108196,0.0003512,120]
[421746410,1778093434000,-226.0,0.00036205,30]
[421746393,1778093434000,-167.21,0.00035616,2]
[421746392,1778093434000,-150.69814802,0.00035616,7]
[421746402,1778093434000,-150.0,0.0003563,7]
[421746388,1778093434000,-166.31055111,0.00035205,30]
[421746394,1778093434000,-150.49474749,0.0003563,7]
[421746399,1778093434000,-150.0,0.0003563,7]
[421746398,1778093434000,-150.0,0.0003563,7]
[421746395,1778093434000,-150.0,0.0003563,7]
[421746403,1778093434000,-200.0,0.0003563,30]
[421746397,1778093434000,-150.0,0.0003563,7]
[421746400,1778093434000,-150.94681551,0.0003563,7]
[421746401,1778093434000,-150.0,0.0003563,7]
[421746396,1778093434000,-150.00000001,0.0003563,7]
[421746404,1778093434000,-500.0,0.00035999,7]
[421746439,1778093437000,-187.45,0.00028817,2]
[421746437,1778093437000,-6043.0,0.00025878,2]
[421746433,1778093437000,-250.0,0.00017298,2]
[421746432,1778093437000,-63.47505529,0.00014638,2]
[421746435,1778093437000,-5856.47505529,0.00022878,2]
[421746431,1778093437000,-565.99999999,0.00014638,2]
[421746449,1778093437000,-1018.13720656,0.00037976,2]
[421746436,1778093437000,-187.45,0.00024658,2]
[421746438,1778093437000,-187.45,0.00027397,7]
[421746434,1778093437000,-186.52494471,0.00022878,2]
[421746441,1778093437000,-187.46,0.00029232,7]
[421746442,1778093437000,-187.46,0.00030136,30]
[421746440,1778093437000,-6043.0,0.00028878,2]
[421746447,1778093437000,-6043.0,0.00037878,2]
[421746448,1778093437000,-500.0,0.00037879,7]
[421746443,1778093437000,-6043.0,0.00031878,2]
[421746445,1778093437000,-19273.63173256,0.00037739,2]
[421746446,1778093437000,-780.0,0.00037739,30]
[421746444,1778093437000,-6043.0,0.00034878,2]
[421746451,1778093437000,-173.8,0.00038125,30]
[421746450,1778093437000,-506.0,0.00038074,14]
[421746484,1778093438000,-300.0,0.000382,2]
[421746480,1778093438000,-300.0,0.000382,2]
[421746492,1778093438000,-1793.38851355,0.000382,2]
[421746501,1778093438000,-868.20760568,0.000382,2]
[421746491,1778093438000,-300.0,0.000382,2]
[421746503,1778093438000,-300.0,0.000382,2]
[421746497,1778093438000,-1145.24599896,0.000382,2]
[421746495,1778093438000,-300.0,0.000382,2]
[421746488,1778093438000,-300.0,0.000382,2]
[421746507,1778093438000,-463.08064867,0.000382,2]
[421746499,1778093438000,-862.96230178,0.000382,2]
[421746502,1778093438000,-300.0,0.000382,2]
[421746479,1778093438000,-394.23469836,0.000382,2]
[421746519,1778093438000,-309.32134718,0.000382,2]
[421746489,1778093438000,-852.7601399,0.000382,2]
[421746505,1778093438000,-300.0,0.000382,2]
[421746509,1778093438000,-481.18706949,0.000382,2]
[421746498,1778093438000,-309.07064608,0.000382,2]
[421746508,1778093438000,-300.0,0.000382,2]
[421746510,1778093438000,-300.0,0.000382,2]
[421746518,1778093438000,-483.27319916,0.000382,2]
[421746516,1778093438000,-300.0,0.000382,2]
[421746512,1778093438000,-300.0,0.000382,2]
[421746513,1778093438000,-300.0,0.000382,2]
[421746514,1778093438000,-300.0,0.000382,2]
[421746517,1778093438000,-300.0,0.000382,2]
[421746511,1778093438000,-451.13853711,0.000382,2]
[421746494,1778093438000,-526.00966879,0.000382,2]
[421746496,1778093438000,-300.0,0.000382,2]
[421746486,1778093438000,-474.98520692,0.000382,2]
[421746490,1778093438000,-300.0,0.000382,2]
[421746453,1778093438000,-250.0,0.00038169,7]
[421746454,1778093438000,-300.0,0.000382,2]
[421746455,1778093438000,-300.0,0.000382,2]
[421746457,1778093438000,-300.0,0.000382,2]
[421746456,1778093438000,-300.0,0.000382,2]
[421746460,1778093438000,-300.0,0.000382,2]
[421746515,1778093438000,-300.0,0.000382,2]
[421746463,1778093438000,-300.0,0.000382,2]
[421746458,1778093438000,-300.0,0.000382,2]
[421746461,1778093438000,-300.0,0.000382,2]
[421746464,1778093438000,-300.0,0.000382,2]
[421746462,1778093438000,-300.0,0.000382,2]
[421746459,1778093438000,-491.85958444,0.000382,2]
[421746493,1778093438000,-343.40295571,0.000382,2]
[421746465,1778093438000,-300.0,0.000382,2]
[421746477,1778093438000,-300.0,0.000382,2]
[421746466,1778093438000,-526.86051061,0.000382,2]
[421746468,1778093438000,-1065.13491717,0.000382,2]
[421746467,1778093438000,-300.0,0.000382,2]
[421746473,1778093438000,-300.0,0.000382,2]
[421746471,1778093438000,-724.83131769,0.000382,2]
[421746472,1778093438000,-301.2859328,0.000382,2]
[421746469,1778093438000,-300.0,0.000382,2]
[421746470,1778093438000,-309.13065885,0.000382,2]
[421746482,1778093438000,-300.0,0.000382,2]
[421746506,1778093438000,-300.0,0.000382,2]
[421746504,1778093438000,-310.3725982,0.000382,2]
[421746500,1778093438000,-300.0,0.000382,2]
[421746475,1778093438000,-300.06118393,0.000382,2]
[421746520,1778093438000,-300.0,0.000382,2]
[421746571,1778093438000,-862.96230178,0.000382,2]
[421746521,1778093438000,-300.0,0.000382,2]
[421746551,1778093438000,-300.0,0.000382,2]
[421746554,1778093438000,-300.0,0.000382,2]
[421746568,1778093438000,-300.0,0.000382,2]
[421746562,1778093438000,-852.7601399,0.000382,2]
[421746560,1778093438000,-300.0,0.000382,2]
[421746561,1778093438000,-300.0,0.000382,2]
[421746558,1778093438000,-300.0,0.000382,2]
[421746565,1778093438000,-526.00966879,0.000382,2]
[421746563,1778093438000,-1793.38851355,0.000382,2]
[421746564,1778093438000,-300.0,0.000382,2]
[421746557,1778093438000,-300.0,0.000382,2]
[421746559,1778093438000,-474.98520692,0.000382,2]
[421746567,1778093438000,-300.0,0.000382,2]
[421746569,1778093438000,-1145.24599896,0.000382,2]
[421746570,1778093438000,-309.07064608,0.000382,2]
[421746572,1778093438000,-300.0,0.000382,2]
[421746575,1778093438000,-310.3725982,0.000382,2]
[421746580,1778093438000,-481.18706949,0.000382,2]
[421746581,1778093438000,-300.0,0.000382,2]
[421746573,1778093438000,-300.0,0.000382,2]
[421746577,1778093438000,-300.0,0.000382,2]
[421746574,1778093438000,-300.0,0.000382,2]
[421746579,1778093438000,-300.0,0.000382,2]
[421746582,1778093438000,-451.13853711,0.000382,2]
[421746576,1778093438000,-300.0,0.000382,2]
[421746578,1778093438000,-463.08064867,0.000382,2]
[421746522,1778093438000,-300.0,0.000382,2]
[421746556,1778093438000,-300.0,0.000382,2]
[421746550,1778093438000,-724.83131769,0.000382,2]
[421746566,1778093438000,-343.40295571,0.000382,2]
[421746549,1778093438000,-309.13065885,0.000382,2]
[421746545,1778093438000,-300.0,0.000382,2]
[421746523,1778093438000,-300.0,0.000382,2]
[421746525,1778093438000,-1092.83356842,0.000382,2]
[421746524,1778093438000,-300.0,0.000382,2]
[421746526,1778093438000,-300.0,0.000382,2]
[421746527,1778093438000,-300.0,0.000382,2]
[421746529,1778093438000,-300.0,0.000382,2]
[421746528,1778093438000,-300.0,0.000382,2]
[421746530,1778093438000,-300.0,0.000382,2]
[421746532,1778093438000,-300.0,0.000382,2]
[421746543,1778093438000,-300.0,0.000382,2]
[421746535,1778093438000,-457.95813116,0.000382,2]
[421746534,1778093438000,-300.0,0.000382,2]
[421746533,1778093438000,-300.0,0.000382,2]
[421746531,1778093438000,-300.0,0.000382,2]
[421746536,1778093438000,-491.85958444,0.000382,2]
[421746540,1778093438000,-603.45144378,0.000382,2]
[421746555,1778093438000,-300.06118393,0.000382,2]
[421746552,1778093438000,-301.2859328,0.000382,2]
[421746546,1778093438000,-1065.13491717,0.000382,2]
[421746548,1778093438000,-300.00000001,0.000382,2]
[421746547,1778093438000,-891.9241332,0.000382,2]
[421746553,1778093438000,-300.0,0.000382,2]
[421746542,1778093438000,-300.0,0.000382,2]
[421746541,1778093438000,-300.0,0.000382,2]
[421746537,1778093438000,-300.0,0.000382,2]
[421746538,1778093438000,-300.0,0.000382,2]
[421746539,1778093438000,-300.0,0.000382,2]
[421746544,1778093438000,-526.86051061,0.000382,2]
[421746636,1778093439000,-346.120965,0.00038815,30]
[421746635,1778093439000,-203.685475,0.00038815,7]
[421746625,1778093439000,-151.0,0.00038815,30]
[421746611,1778093439000,-2488.9132235,0.00038815,2]
[421746616,1778093439000,-906.701739,0.00038815,30]
[421746623,1778093439000,-151.0,0.00038815,30]
[421746617,1778093439000,-151.0,0.00038815,30]
[421746622,1778093439000,-1626.336272,0.00038815,30]
[421746613,1778093439000,-906.701739,0.00038815,30]
[421746621,1778093439000,-1626.336272,0.00038815,30]
[421746627,1778093439000,-151.0,0.00038815,30]
[421746615,1778093439000,-906.701739,0.00038815,30]
[421746624,1778093439000,-151.0,0.00038815,30]
[421746626,1778093439000,-907.90741,0.00038815,30]
[421746632,1778093439000,-346.120965,0.00038815,30]
[421746634,1778093439000,-346.120965,0.00038815,30]
[421746633,1778093439000,-346.120965,0.00038815,30]
[421746629,1778093439000,-151.0,0.00038815,30]
[421746628,1778093439000,-907.90741,0.00038815,30]
[421746631,1778093439000,-907.90741,0.00038815,30]
[421746638,1778093439000,-203.685475,0.00038815,7]
[421746649,1778093439000,-152.0,0.00038879,7]
[421746637,1778093439000,-203.685475,0.00038815,7]
[421746648,1778093439000,-1000.0,0.0003887,90]
[421746640,1778093439000,-750.621903,0.00038815,28]
[421746639,1778093439000,-203.685475,0.00038815,7]
[421746614,1778093439000,-906.701739,0.00038815,30]
[421746630,1778093439000,-907.90741,0.00038815,30]
[421746619,1778093439000,-1626.336272,0.00038815,30]
[421746585,1778093439000,-300.0,0.000382,2]
[421746620,1778093439000,-1626.336272,0.00038815,30]
[421746583,1778093439000,-300.0,0.000382,2]
[421746642,1778093439000,-750.621903,0.00038815,28]
[421746584,1778093439000,-300.0,0.000382,2]
[421746595,1778093439000,-1560.0,0.00038356,30]
[421746587,1778093439000,-300.0,0.000382,2]
[421746596,1778093439000,-1018.13720656,0.00038361,2]
[421746586,1778093439000,-300.0,0.000382,2]
[421746593,1778093439000,-1500.4472,0.00038351,2]
[421746589,1778093439000,-483.27319916,0.000382,2]
[421746588,1778093439000,-300.0,0.000382,2]
[421746592,1778093439000,-262.97,0.00038276,60]
[421746591,1778093439000,-300.0,0.000382,2]
[421746594,1778093439000,-1467.129,0.00038351,2]
[421746590,1778093439000,-309.32134718,0.000382,2]
[421746597,1778093439000,-319.62062567,0.00038424,13]
[421746602,1778093439000,-156.47517627,0.00038736,90]
[421746601,1778093439000,-300.84690786,0.0003872,30]
[421746600,1778093439000,-1000.0,0.00038704,90]
[421746599,1778093439000,-1560.0,0.0003863,30]
[421746605,1778093439000,-297.922,0.00038776,30]
[421746603,1778093439000,-1018.13720656,0.00038746,2]
[421746604,1778093439000,-1000.0,0.00038763,90]
[421746598,1778093439000,-8114.95937177,0.00038533,2]
[421746607,1778093439000,-1000.0,0.00038796,90]
[421746610,1778093439000,-133846.0837838,0.00038815,2]
[421746608,1778093439000,-1200.0,0.000388,14]
[421746606,1778093439000,-197.90691566,0.00038791,120]
[421746609,1778093439000,-152.0,0.00038802,7]
[421746612,1778093439000,-151.0,0.00038815,30]
[421746618,1778093439000,-151.0,0.00038815,30]
[421746641,1778093439000,-750.621903,0.00038815,28]
[421746644,1778093439000,-1107.376107,0.00038815,30]
[421746646,1778093439000,-1107.376107,0.00038815,30]
[421746680,1778093439000,-151.0,0.0003918,30]
[421746688,1778093439000,-153.83590617,0.000392,30]
[421746683,1778093439000,-151.0,0.0003918,30]
[421746686,1778093439000,-201.02553,0.0003918,30]
[421746687,1778093439000,-201.02553,0.0003918,30]
[421746684,1778093439000,-201.02553,0.0003918,30]
[421746685,1778093439000,-201.02553,0.0003918,30]
[421746690,1778093439000,-1000.0,0.00039224,90]
[421746689,1778093439000,-1000.0,0.00039217,90]
[421746697,1778093439000,-1000.0,0.0003929,90]
[421746693,1778093439000,-150.0,0.00039285,2]
[421746698,1778093439000,-1000.0,0.00039292,90]
[421746696,1778093439000,-256.0,0.00039285,2]
[421746682,1778093439000,-151.0,0.0003918,30]
[421746694,1778093439000,-150.0,0.00039285,2]
[421746695,1778093439000,-150.0,0.00039285,2]
[421746692,1778093439000,-4480.0,0.00039258,30]
[421746699,1778093439000,-1000.0,0.00039298,90]
[421746703,1778093439000,-1000.0,0.00039315,90]
[421746701,1778093439000,-1500.4472,0.0003931,2]
[421746700,1778093439000,-1000.0,0.00039306,90]
[421746702,1778093439000,-1467.129,0.0003931,2]
[421746704,1778093439000,-286.0,0.00039325,2]
[421746709,1778093439000,-500.0,0.00039337,7]
[421746647,1778093439000,-1107.376107,0.00038815,30]
[421746708,1778093439000,-1000.0,0.00039329,90]
[421746706,1778093439000,-245.0,0.00039325,2]
[421746707,1778093439000,-1000.0,0.00039327,90]
[421746691,1778093439000,-1000.0,0.00039236,90]
[421746678,1778093439000,-151.0,0.0003918,30]
[421746705,1778093439000,-150.0,0.00039325,2]
[421746679,1778093439000,-151.0,0.0003918,30]
[421746681,1778093439000,-232.816702,0.0003918,30]
[421746645,1778093439000,-1107.376107,0.00038815,30]
[421746650,1778093439000,-1800.0,0.000389,14]
[421746651,1778093439000,-1560.0,0.00038904,30]
[421746654,1778093439000,-1000.0,0.00038974,90]
[421746661,1778093439000,-1000.0,0.00039031,90]
[421746660,1778093439000,-1010.99063922,0.00039025,120]
[421746653,1778093439000,-1000.0,0.00038947,90]
[421746663,1778093439000,-4480.0,0.00039085,30]
[421746652,1778093439000,-196.0,0.00038919,10]
[421746659,1778093439000,-382.59396323,0.00039021,2]
[421746662,1778093439000,-1000.0,0.00039052,90]
[421746655,1778093439000,-1000.0,0.0003898,90]
[421746656,1778093439000,-350.0,0.00038999,8]
[421746643,1778093439000,-750.621903,0.00038815,28]
[421746665,1778093439000,-1000.0,0.00039126,90]
[421746658,1778093439000,-20000.0,0.00039,2]
[421746672,1778093439000,-202.280303,0.0003918,30]
[421746668,1778093439000,-534.34186812,0.0003915,7]
[421746671,1778093439000,-14347.74275024,0.0003918,2]
[421746673,1778093439000,-202.280303,0.0003918,30]
[421746669,1778093439000,-1000.0,0.00039153,90]
[421746670,1778093439000,-1560.0,0.00039178,30]
[421746666,1778093439000,-1018.13720656,0.0003913,2]
[421746675,1778093439000,-202.280303,0.0003918,30]
[421746674,1778093439000,-202.280303,0.0003918,30]
[421746677,1778093439000,-151.0,0.0003918,30]
[421746667,1778093439000,-1000.0,0.00039143,90]
[421746664,1778093439000,-1000.0,0.00039112,90]
[421746676,1778093439000,-151.0,0.0003918,30]
[421746746,1778093440000,-392.597154,0.00039456,30]
[421746749,1778093440000,-392.597154,0.00039456,30]
[421746745,1778093440000,-392.597154,0.00039456,30]
[421746741,1778093440000,-151.0,0.00039456,30]
[421746747,1778093440000,-392.597154,0.00039456,30]
[421746743,1778093440000,-392.597154,0.00039456,30]
[421746740,1778093440000,-151.0,0.00039456,30]
[421746739,1778093440000,-151.0,0.00039456,30]
[421746744,1778093440000,-392.597154,0.00039456,30]
[421746742,1778093440000,-392.597154,0.00039456,30]
[421746750,1778093440000,-414.754086,0.00039456,30]
[421746738,1778093440000,-401121.4,0.00039456,120]
[421746753,1778093440000,-414.754086,0.00039456,30]
[421746760,1778093440000,-202.280303,0.00039456,30]
[421746752,1778093440000,-414.754086,0.00039456,30]
[421746756,1778093440000,-202.280303,0.00039456,30]
[421746754,1778093440000,-414.754086,0.00039456,30]
[421746755,1778093440000,-414.754086,0.00039456,30]
[421746759,1778093440000,-202.280303,0.00039456,30]
[421746758,1778093440000,-414.754086,0.00039456,30]
[421746757,1778093440000,-414.754086,0.00039456,30]
[421746761,1778093440000,-202.280303,0.00039456,30]
[421746763,1778093440000,-151.0,0.00039456,30]
[421746748,1778093440000,-392.597154,0.00039456,30]
[421746751,1778093440000,-414.754086,0.00039456,30]
[421746737,1778093440000,-56252.06527208,0.00039456,49]
[421746716,1778093440000,-1000.0,0.00039383,90]
[421746733,1778093440000,-300.0,0.000382,2]
[421746767,1778093440000,-151.0,0.00039456,30]
[421746710,1778093440000,-151.0,0.00039341,30]
[421746711,1778093440000,-151.0,0.00039341,30]
[421746712,1778093440000,-1000.0,0.00039345,90]
[421746715,1778093440000,-1000.0,0.00039382,90]
[421746718,1778093440000,-1000.0,0.00039406,90]
[421746714,1778093440000,-1000.0,0.00039378,90]
[421746723,1778093440000,-350.0,0.0003945,9]
[421746720,1778093440000,-1000.0,0.00039414,90]
[421746719,1778093440000,-1000.0,0.00039411,90]
[421746713,1778093440000,-319.62062567,0.00039356,14]
[421746721,1778093440000,-4480.0,0.00039432,30]
[421746717,1778093440000,-1000.0,0.00039396,90]
[421746722,1778093440000,-1000.0,0.00039445,90]
[421746725,1778093440000,-6978.36564637,0.00039456,49]
[421746726,1778093440000,-2947.50193043,0.00039456,49]
[421746724,1778093440000,-1560.0,0.00039452,30]
[421746727,1778093440000,-31023.1653,0.00020081,2]
[421746728,1778093440000,-162.0,0.00032205,2]
[421746731,1778093440000,-6228.36,0.0003819,10]
[421746729,1778093440000,-1613.7,0.00036027,120]
[421746730,1778093440000,-1613.7,0.00037424,120]
[421746735,1778093440000,-751.0,0.00038815,30]
[421746734,1778093440000,-151.0,0.00038815,30]
[421746732,1778093440000,-300.0,0.000382,2]
[421746736,1778093440000,-1613.7,0.00038821,120]
[421746764,1778093440000,-151.0,0.00039456,30]
[421746806,1778093440000,-1107.376107,0.00039456,30]
[421746769,1778093440000,-201.02553,0.00039456,30]
[421746794,1778093440000,-346.120965,0.00039456,30]
[421746798,1778093440000,-203.685475,0.00039456,7]
[421746808,1778093440000,-151.0,0.00039456,30]
[421746809,1778093440000,-1000.0,0.00039468,90]
[421746797,1778093440000,-203.685475,0.00039456,7]
[421746810,1778093440000,-1000.0,0.00039483,90]
[421746799,1778093440000,-203.685475,0.00039456,7]
[421746804,1778093440000,-1107.376107,0.00039456,30]
[421746802,1778093440000,-750.621903,0.00039456,28]
[421746803,1778093440000,-750.621903,0.00039456,28]
[421746819,1778093440000,-151.0,0.000395,30]
[421746791,1778093440000,-907.90741,0.00039456,30]
[421746805,1778093440000,-1107.376107,0.00039456,30]
[421746800,1778093440000,-750.621903,0.00039456,28]
[421746801,1778093440000,-750.621903,0.00039456,28]
[421746811,1778093440000,-2842.13055093,0.00039494,2]
[421746815,1778093440000,-10896.687378,0.00039496,2]
[421746813,1778093440000,-4356.66470442,0.00039494,2]
[421746817,1778093440000,-151.0,0.000395,30]
[421746814,1778093440000,-234.17572174,0.00039494,2]
[421746818,1778093440000,-151.0,0.000395,30]
[421746812,1778093440000,-187.13656576,0.00039494,8]
[421746816,1778093440000,-57689.96,0.000395,7]
[421746765,1778093440000,-151.0,0.00039456,30]
[421746807,1778093440000,-1107.376107,0.00039456,30]
[421746790,1778093440000,-907.90741,0.00039456,30]
[421746820,1778093440000,-151.0,0.000395,30]
[421746785,1778093440000,-151.0,0.00039456,30]
[421746795,1778093440000,-203.685475,0.00039456,7]
[421746766,1778093440000,-151.0,0.00039456,30]
[421746768,1778093440000,-244.54209,0.00039456,30]
[421746762,1778093440000,-151.0,0.00039456,30]
[421746770,1778093440000,-201.02553,0.00039456,30]
[421746779,1778093440000,-1626.336272,0.00039456,30]
[421746773,1778093440000,-906.701739,0.00039456,30]
[421746780,1778093440000,-1626.336272,0.00039456,30]
[421746781,1778093440000,-1626.336272,0.00039456,30]
[421746783,1778093440000,-151.0,0.00039456,30]
[421746782,1778093440000,-1626.336272,0.00039456,30]
[421746772,1778093440000,-201.02553,0.00039456,30]
[421746771,1778093440000,-201.02553,0.00039456,30]
[421746778,1778093440000,-151.0,0.00039456,30]
[421746774,1778093440000,-906.701739,0.00039456,30]
[421746788,1778093440000,-907.90741,0.00039456,30]
[421746789,1778093440000,-267.758608,0.00039456,30]
[421746796,1778093440000,-346.120965,0.00039456,30]
[421746793,1778093440000,-346.120965,0.00039456,30]
[421746792,1778093440000,-346.120965,0.00039456,30]
[421746786,1778093440000,-907.90741,0.00039456,30]
[421746784,1778093440000,-151.0,0.00039456,30]
[421746777,1778093440000,-151.0,0.00039456,30]
[421746776,1778093440000,-906.701739,0.00039456,30]
[421746775,1778093440000,-906.701739,0.00039456,30]
[421746787,1778093440000,-151.0,0.00039456,30]
[421746849,1778093441000,-238.53686489,0.00039566,30]
[421746858,1778093441000,-500.0,0.00039566,30]
[421746852,1778093441000,-200.0,0.00039566,30]
[421746859,1778093441000,-151.0,0.00039566,30]
[421746857,1778093441000,-151.0,0.00039566,30]
[421746854,1778093441000,-151.0,0.00039566,30]